lending/lending_fUSD_20250102
["ID","MTS","AMOUNT","RATE_DAILY","PERIOD"]
[347417560,1735779034721,-1111.65,0.00010958,2]
[347417561,1735779034730,-500.0,0.00010958,2]
[347417562,1735779034740,-500.0,0.00010958,2]
[347417563,1735779034749,-826.4,0.00010958,2]
[347417564,1735779034759,-500.0,0.00010958,2]
[347417565,1735779034769,-500.0,0.00010958,2]
[347417566,1735779034778,-643.14,0.00010958,2]
[347417567,1735779034787,-514.85,0.00010958,2]
[347417568,1735779034796,-1335.18,0.00010958,2]
[347417569,1735779034806,-500.0,0.00010958,2]
[347417570,1735779034816,-925.47,0.00010958,2]
[347417571,1735779034826,-500.0,0.00010958,2]
[347417572,1735779034835,-969.43,0.00010958,2]
[347417573,1735779034844,-500.0,0.00010958,2]
[347417574,1735779034854,-500.0,0.00010958,2]
[347417575,1735779034863,-500.0,0.00010958,2]
[347417576,1735779034872,-723.51,0.00010958,2]
[347417577,1735779034882,-1003.49,0.00010958,2]
[347417578,1735779034891,-1074.65,0.00010958,2]
[347417579,1735779034900,-500.0,0.00010958,2]
[347417580,1735779034911,-500.0,0.00010958,2]
[347417581,1735779034921,-500.0,0.00010958,2]
[347417582,1735779034930,-1147.86,0.00010958,2]
[347417583,1735779034939,-682.83,0.00010958,2]
[347417584,1735779034950,-500.0,0.00010958,2]
[347417585,1735779034960,-3039.02,0.00010958,2]
[347417586,1735779034971,-500.0,0.00010958,2]
[347417587,1735779034980,-232.90998723,0.00010958,2]
[347417588,1735779034989,-500.0,0.00010958,2]
[347417589,1735779034999,-500.0,0.00010958,2]
[347417590,1735779035008,-637.29,0.00010958,2]
[347417591,1735779035017,-612.54,0.00010958,2]
[347417592,1735779035026,-500.0,0.00010958,2]
[347417593,1735779035035,-1105.21,0.00010958,2]
[347417594,1735779035044,-534.01,0.00010958,2]
[347417595,1735779035053,-858.32,0.00010958,2]
[347417596,1735779035062,-638.5892048,0.00010958,2]
[347417597,1735779035072,-1710.55,0.00010958,2]
[347417598,1735779035081,-500.0,0.00010958,2]
[347417599,1735779035091,-500.0,0.00010958,2]
[347417600,1735779035100,-500.0,0.00010958,2]
[347417601,1735779035109,-534.72,0.00010958,2]
[347417602,1735779035118,-581.88,0.00010958,2]
[347417603,1735779035127,-1259.95,0.00010958,2]
[347417604,1735779035137,-956.98,0.00010958,2]
[347417605,1735779035146,-500.0,0.00010958,2]
[347417606,1735779035155,-642.36,0.00010958,2]
[347417607,1735779035168,-949.93,0.00010958,2]
[347417608,1735779035177,-1106.16,0.00010958,2]
[347417609,1735779035187,-500.0,0.00010958,2]
[347417610,1735779035196,-500.0,0.00010958,2]
[347417611,1735779035205,-4223.24,0.00010958,2]
[347417612,1735779035215,-1061.14,0.00010958,2]
[347417613,1735779035225,-1033.17,0.00010958,2]
[347417614,1735779035234,-500.0,0.00010958,2]
[347417615,1735779035243,-1134.29,0.00010958,2]
[347417616,1735779035253,-500.0,0.00010958,2]
[347417617,1735779035262,-500.0,0.00010958,2]
[347417618,1735779035272,-500.0,0.00010958,2]
[347417619,1735779035281,-500.0,0.00010958,2]
[347417620,1735779035290,-500.0,0.00010958,2]
[347417621,1735779035300,-500.0,0.00010958,2]
[347417622,1735779035309,-723.8,0.00010958,2]
[347417623,1735779035318,-1074.37,0.00010958,2]
[347417624,1735779035327,-796.55,0.00010958,2]
[347417625,1735779035336,-500.0,0.00010958,2]
[347417626,1735779035346,-500.0,0.00010958,2]
[347417627,1735779035356,-1234.53,0.00010958,2]
[347417628,1735779035366,-4185.48,0.00010958,2]
[347417629,1735779035375,-696.91,0.00010958,2]
[347417630,1735779035384,-500.0,0.00010958,2]
[347417631,1735779035394,-892.54,0.00010958,2]
[347417632,1735779035403,-500.0,0.00010958,2]
[347417633,1735779035415,-500.0,0.00010958,2]
[347417634,1735779035424,-500.0,0.00010958,2]
[347417635,1735779035434,-500.0,0.00010958,2]
[347417636,1735779035443,-500.0,0.00010958,2]
[347417637,1735779035452,-500.0,0.00010958,2]
[347417638,1735779035462,-1928.81,0.00010958,2]
[347417639,1735779035471,-500.0,0.00010958,2]
[347417640,1735779035481,-738.9,0.00010958,2]
[347417641,1735779035490,-500.0,0.00010958,2]
[347417642,1735779035499,-1166.83,0.00010958,2]
[347417643,1735779035508,-500.0,0.00010958,2]
[347417644,1735779035517,-1263.53,0.00010958,2]
[347417645,1735779035526,-500.0,0.00010958,2]
[347417646,1735779035536,-1156.46,0.00010958,2]
[347417647,1735779035546,-1062.53,0.00010958,2]
[347417648,1735779035555,-736.03,0.00010958,2]
[347417649,1735779035565,-500.0,0.00010958,2]
[347417650,1735779035574,-500.0,0.00010958,2]
[347417651,1735779035584,-4196.60842582,0.00010958,2]
[347417652,1735779035606,-3909.50157418,0.00010958,2]
[347417653,1735779035615,-500.0,0.00010958,2]
[347417654,1735779035625,-856.31,0.00010958,2]
[347417655,1735779035637,-1738.9,0.00010958,2]
[347417656,1735779035648,-702.08842311,0.00010958,2]
[347417657,1735779035662,-570.15157689,0.00010958,2]
[347417658,1735779035671,-500.0,0.00010958,2]
[347417659,1735779035680,-500.0,0.00010958,2]
[347417660,1735779035691,-500.0,0.00010958,2]
[347417661,1735779035700,-500.0,0.00010958,2]
[347417662,1735779035710,-429.84842311,0.00010958,2]
[347417663,1735779035722,-294.72157689,0.00010958,2]
[347417664,1735779035732,-500.0,0.00010958,2]
[347417665,1735779035742,-158.1183821,0.00010958,2]
[347417666,1735779035752,-1227.84,0.00010958,2]
[347417667,1735779035762,-500.0,0.00010958,2]
[347417668,1735779035771,-629.91,0.00010958,2]
[347417669,1735779035781,-360.93036988,0.00010958,2]
[347417670,1735779035797,-316.65963012,0.00010958,2]
[347417671,1735779035807,-767.63,0.00010958,2]
[347417672,1735779035818,-671.08712,0.00010958,2]
[347417673,1735779035827,-500.0,0.00010958,2]
[347417674,1735779035837,-863.01,0.00010958,2]
[347417675,1735779035846,-176.56722131,0.00010958,2]
[347417676,1735779035857,-364.26277869,0.00010958,2]
[347417677,1735779035866,-402.13132894,0.00010958,2]
[347417678,1735779035877,-856.91,0.00010958,2]
[347417679,1735779035910,-221.99867106,0.00010958,2]
[347417680,1735779035920,-500.0,0.00010958,2]
[347417681,1735779035930,-861.56,0.00010958,2]
[347417682,1735779035939,-672.93,0.00010958,2]
[347417683,1735779035948,-500.0,0.00010958,2]
[347417684,1735779035957,-1270.65,0.00010958,2]
[347417685,1735779035967,-500.0,0.00010958,2]
[347417686,1735779035976,-328.85022595,0.00010958,2]
[347417687,1735779035986,-117.27412499,0.00010958,2]
[347417689,1735779038059,-1328.16587501,0.00010958,2]
[347417690,1735779038068,-181.23702895,0.00010958,2]
[347417691,1735779038081,-550.473753,0.00010958,2]
[347417692,1735779038129,-560.09921805,0.00010958,2]
[347417693,1735779038138,-620.58,0.00010958,2]
[347417694,1735779038148,-2489.87,0.00010958,2]
[347417695,1735779038158,-522.02,0.00010958,2]
[347417696,1735779038171,-500.21,0.00010958,2]
[347417697,1735779038181,-301.66766942,0.00010958,2]
[347417698,1735779038193,-198.33233058,0.00010958,2]
[347417699,1735779038203,-238.88893291,0.00010958,2]
[347417701,1735779038311,-261.11106709,0.00010958,2]
[347417702,1735779038320,-1078.90071846,0.00010958,2]
[347417703,1735779038331,-2632.97928154,0.00010958,2]
[347417704,1735779038340,-658.8,0.00010958,2]
[347417705,1735779038349,-825.88,0.00010958,2]
[347417706,1735779038358,-631.81,0.00010958,2]
[347417707,1735779038367,-910.64,0.00010958,2]
[347417708,1735779038377,-500.0,0.00010958,2]
[347417709,1735779038386,-949.865238,0.00010958,2]
[347417710,1735779038395,-500.0,0.00010958,2]
[347417711,1735779038404,-1088.09,0.00010958,2]
[347417712,1735779038417,-500.0,0.00010958,2]
[347417713,1735779038426,-1281.96,0.00010958,2]
[347417714,1735779038435,-500.0,0.00010958,2]
[347417715,1735779038445,-500.0,0.00010958,2]
[347417716,1735779038454,-641.98,0.00010958,2]
[347417717,1735779038464,-2316.59,0.00010958,2]
[347417718,1735779038473,-500.0,0.00010958,2]
[347417719,1735779038483,-676.81,0.00010958,2]
[347417720,1735779038492,-1589.9,0.00010958,2]
[347417721,1735779038502,-671.72,0.00010958,2]
[347417722,1735779038511,-500.0,0.00010958,2]
[347417723,1735779038521,-500.0,0.00010958,2]
[347417724,1735779038530,-1141.66,0.00010958,2]
[347417725,1735779038539,-1254.39,0.00010958,2]
[347417726,1735779038549,-500.0,0.00010958,2]
[347417727,1735779038558,-986.14,0.00010958,2]
[347417728,1735779038568,-500.0,0.00010958,2]
[347417729,1735779038577,-655.6,0.00010958,2]
[347417730,1735779038587,-500.0,0.00010958,2]
[347417731,1735779038596,-500.0,0.00010958,2]
[347417732,1735779038606,-500.0,0.00010958,2]
[347417733,1735779038615,-500.0,0.00010958,2]
[347417734,1735779038624,-500.0,0.00010958,2]
[347417735,1735779038634,-500.0,0.00010958,2]
[347417736,1735779038643,-500.0,0.00010958,2]
[347417737,1735779038655,-876.89,0.00010958,2]
[347417738,1735779038668,-1479.54,0.00010958,2]
[347417739,1735779038677,-838.48,0.00010958,2]
[347417740,1735779038687,-500.0,0.00010958,2]
[347417741,1735779038697,-804.91,0.00010958,2]
[347417742,1735779038707,-850.15,0.00010958,2]
[347417743,1735779038716,-500.0,0.00010958,2]
[347417744,1735779038727,-500.0,0.00010958,2]
[347417745,1735779038736,-774.3,0.00010958,2]
[347417746,1735779038745,-603.22,0.00010958,2]
[347417747,1735779038754,-500.0,0.00010958,2]
[347417748,1735779038763,-8157.67,0.00010958,2]
[347417749,1735779038773,-500.0,0.00010958,2]
[347417750,1735779038783,-500.0,0.00010958,2]
[347417751,1735779038793,-500.0,0.00010958,2]
[347417752,1735779038802,-710.12548044,0.00010958,2]
[347417753,1735779038815,-169.28451956,0.00010958,2]
[347417754,1735779038824,-132.6260387,0.00010958,2]
[347417755,1735779038835,-944.5239613,0.00010958,2]
[347417756,1735779038844,-1420.53,0.00010958,2]
[347417757,1735779038853,-1072.31,0.00010958,2]
[347417758,1735779038862,-1517.11,0.00010958,2]
[347417759,1735779038871,-783.34,0.00010958,2]
[347417760,1735779038880,-500.0,0.00010958,2]
[347417761,1735779038889,-556.41,0.00010958,2]
[347417762,1735779038899,-500.0,0.00010958,2]
[347417763,1735779038913,-693.10090477,0.00010958,2]
[347417764,1735779038924,-638.75909523,0.00010958,2]
[347417765,1735779038933,-885.83,0.00010958,2]
[347417766,1735779038942,-500.0,0.00010958,2]
[347417767,1735779038951,-500.0,0.00010958,2]
[347417768,1735779038960,-500.0,0.00010958,2]
[347417769,1735779038970,-888.18,0.00010958,2]
[347417770,1735779038979,-500.0,0.00010958,2]
[347417771,1735779038988,-1172.25,0.00010958,2]
[347417772,1735779038997,-500.0,0.00010958,2]
[347417773,1735779039006,-1319.76,0.00010958,2]
[347417774,1735779039016,-940.72,0.00010958,2]
[347417775,1735779039026,-500.0,0.00010958,2]
[347417776,1735779039036,-1211.16,0.00010958,2]
[347417777,1735779039045,-1861.41,0.00010958,2]
[347417778,1735779039054,-500.0,0.00010958,2]
[347417779,1735779039063,-1181.86,0.00010958,2]
[347417780,1735779039072,-500.0,0.00010958,2]
[347417781,1735779039081,-1433.33,0.00010958,2]
[347417782,1735779039090,-12.70822877,0.00010958,2]
[347417783,1735779039101,-963.99177123,0.00010958,2]
[347417784,1735779039110,-1143.78,0.00010958,2]
[347417785,1735779039119,-500.0,0.00010958,2]
[347417786,1735779039128,-549.82,0.00010958,2]
[347417787,1735779039137,-500.0,0.00010958,2]
[347417788,1735779039146,-500.0,0.00010958,2]
[347417789,1735779039155,-500.0,0.00010958,2]
[347417790,1735779039166,-500.0,0.00010958,2]
[347417791,1735779039175,-500.0,0.00010958,2]
[347417792,1735779039184,-500.0,0.00010958,2]
[347417793,1735779039194,-576.84,0.00010958,2]
[347417794,1735779039202,-500.0,0.00010958,2]
[347417795,1735779039212,-1262.93,0.00010958,2]
[347417796,1735779039223,-500.0,0.00010958,2]
[347417797,1735779039233,-736.88,0.00010958,2]
[347417798,1735779039242,-3979.79,0.00010958,2]
[347417799,1735779039252,-500.0,0.00010958,2]
[347417800,1735779039260,-1262.43,0.00010958,2]
[347417801,1735779039270,-1112.47,0.00010958,2]
[347417802,1735779039279,-1082.19,0.00010958,2]
[347417803,1735779039288,-1250.7,0.00010958,2]
[347417804,1735779039297,-500.0,0.00010958,2]
[347417805,1735779039307,-1448.5,0.00010958,2]
[347417806,1735779039316,-500.0,0.00010958,2]
[347417807,1735779039325,-500.0,0.00010958,2]
[347417808,1735779039334,-1291.78,0.00010958,2]
[347417809,1735779039343,-888.12,0.00010958,2]
[347417810,1735779039352,-6267.31,0.00010958,2]
[347417811,1735779039361,-1294.12,0.00010958,2]
[347417812,1735779039371,-823.28,0.00010958,2]
[347417813,1735779039379,-5762.44,0.00010958,2]
[347417814,1735779039389,-2344.91,0.00010958,2]
[347417815,1735779039398,-500.0,0.00010958,2]
[347417816,1735779039407,-711.68,0.00010958,2]
[347417817,1735779039418,-500.0,0.00010958,2]
[347417818,1735779039427,-500.0,0.00010958,2]
[347417819,1735779039438,-1052.63,0.00010958,2]
[347417820,1735779039447,-500.0,0.00010958,2]
[347417821,1735779039456,-500.0,0.00010958,2]
[347417822,1735779039465,-1347.47,0.00010958,2]
[347417823,1735779039475,-500.0,0.00010958,2]
[347417824,1735779039487,-1048.12,0.00010958,2]
[347417825,1735779039497,-500.0,0.00010958,2]
[347417826,1735779039506,-1935.77,0.00010958,2]
[347417827,1735779039515,-1459.95,0.00010958,2]
[347417828,1735779039525,-670.47,0.00010958,2]
[347417829,1735779039534,-715.41,0.00010958,2]
[347417830,1735779039543,-806.65,0.00010958,2]
[347417831,1735779039554,-858.01,0.00010958,2]
[347417832,1735779039563,-500.0,0.00010958,2]
[347417833,1735779039573,-1109.62,0.00010958,2]
[347417834,1735779039582,-2424.16,0.00010958,2]
[347417835,1735779039592,-537.75,0.00010958,2]
[347417836,1735779039601,-500.0,0.00010958,2]
[347417837,1735779039611,-1091.87,0.00010958,2]
[347417838,1735779039620,-500.0,0.00010958,2]
[347417839,1735779039629,-1234.87,0.00010958,2]
[347417840,1735779039639,-500.0,0.00010958,2]
[347417841,1735779039651,-856.56,0.00010958,2]
[347417842,1735779039661,-745.61,0.00010958,2]
[347417843,1735779039670,-500.0,0.00010958,2]
[347417844,1735779039680,-547.16,0.00010958,2]
[347417845,1735779039690,-500.0,0.00010958,2]
[347417846,1735779039701,-500.0,0.00010958,2]
[347417847,1735779039710,-2210.35,0.00010958,2]
[347417848,1735779039719,-503.08,0.00010958,2]
[347417849,1735779039729,-500.0,0.00010958,2]
[347417850,1735779039739,-500.0,0.00010958,2]
[347417851,1735779039748,-1170.98,0.00010958,2]
[347417852,1735779039758,-500.0,0.00010958,2]
[347417853,1735779039768,-996.85,0.00010958,2]
[347417854,1735779039777,-1012.03,0.00010958,2]
[347417855,1735779039787,-830.47,0.00010958,2]
[347417856,1735779039797,-8206.05,0.00010958,2]
[347417857,1735779039807,-3340.19,0.00010958,2]
[347417858,1735779039816,-500.0,0.00010958,2]
[347417859,1735779039825,-500.0,0.00010958,2]
[347417860,1735779039834,-606.03,0.00010958,2]
[347417861,1735779039843,-500.0,0.00010958,2]
[347417862,1735779039853,-2360.31,0.00010958,2]
[347417863,1735779039862,-612.57,0.00010958,2]
[347417864,1735779039872,-1442.18,0.00010958,2]
[347417865,1735779039882,-2705.37,0.00010958,2]
[347417866,1735779039891,-706.88,0.00010958,2]
[347417867,1735779039900,-500.0,0.00010958,2]
[347417868,1735779039912,-396.237991,0.00010958,2]
[347417869,1735779039946,-485.112009,0.00010958,2]
[347417870,1735779039956,-500.0,0.00010958,2]
[347417871,1735779039966,-1128.31,0.00010958,2]
[347417872,1735779039975,-738.71,0.00010958,2]
[347417875,1735779039985,-962.95,0.00010958,2]
[347417877,1735779039995,-527.56660869,0.00010958,2]
[347417880,1735779040006,-552.70339131,0.00010958,2]
[347417882,1735779040016,-672.7,0.00010958,2]
[347417884,1735779040025,-1494.6,0.00010958,2]
[347417886,1735779040035,-829.07,0.00010958,2]
[347417888,1735779040044,-500.0,0.00010958,2]
[347417890,1735779040053,-754.82825869,0.00010958,2]
[347417918,1735779040706,-133.77174131,0.00010958,2]
[347417919,1735779040716,-353.74341147,0.00010958,2]
[347417920,1735779040735,-368.29658853,0.00010958,2]
[347417921,1735779040744,-741.35310764,0.00010958,2]
[347417922,1735779040757,-143.05689236,0.00010958,2]
[347417923,1735779040767,-500.0,0.00010958,2]
[347417924,1735779040777,-209.50428565,0.00010958,2]
[347417925,1735779040789,-2208.79571435,0.00010958,2]
[347417926,1735779040799,-1599.33,0.00010958,2]
[347417927,1735779040809,-788.16,0.00010958,2]
[347417928,1735779040819,-704.86,0.00010958,2]
[347417929,1735779040829,-503.40965366,0.00010958,2]
[347417930,1735779040840,-354.65628871,0.00010958,2]
[347417931,1735779041077,-835.19405763,0.00010958,2]
[347417932,1735779041086,-8300.35,0.00010958,2]
[347417933,1735779041096,-1288.41,0.00010958,2]
[347417934,1735779041105,-961.7,0.00010958,2]
[347417935,1735779041115,-671.91,0.00010958,2]
[347417936,1735779041124,-500.0,0.00010958,2]
[347417937,1735779041133,-500.0,0.00010958,2]
[347417938,1735779041143,-1523.89,0.00010958,2]
[347417939,1735779041153,-500.0,0.00010958,2]
[347417940,1735779041164,-1579.34,0.00010958,2]
[347417941,1735779041173,-775.61,0.00010958,2]
[347417942,1735779041182,-948.70363334,0.00010958,2]
[347417943,1735779041194,-1661.68636666,0.00010958,2]
[347417944,1735779041204,-507.46,0.00010958,2]
[347417945,1735779041213,-500.0,0.00010958,2]
[347417946,1735779041222,-1055.47,0.00010958,2]
[347417947,1735779041231,-1171.01,0.00010958,2]
[347417948,1735779041241,-500.0,0.00010958,2]
[347417949,1735779041250,-753.16,0.00010958,2]
[347417950,1735779041259,-994.46015918,0.00010958,2]
[347417967,1735779043148,-347.5295375,0.0001095,2]
[347417979,1735779043381,-229.35279198,0.0001095,2]
[347417980,1735779043391,-21.03342701,0.00010958,2]
[347417981,1735779043405,-399.85641381,0.00010958,2]
[347417982,1735779043418,-500.0,0.00010958,2]
[347417983,1735779043427,-633.41066254,0.00010958,2]
[347417999,1735779046205,-1274.73933746,0.00010958,2]
[347418000,1735779046214,-581.58,0.00010958,2]
[347418001,1735779046223,-685.31,0.00010958,2]
[347418002,1735779046232,-500.0,0.00010958,2]
[347418003,1735779046241,-1005.12,0.00010958,2]
[347418004,1735779046250,-500.0,0.00010958,2]
[347418005,1735779046259,-500.0,0.00010958,2]
[347418006,1735779046268,-1261.36,0.00010958,2]
[347418007,1735779046276,-1620.27,0.00010958,2]
[347418008,1735779046285,-548.82,0.00010958,2]
[347418009,1735779046294,-3197.82,0.00010958,2]
[347418010,1735779046303,-500.0,0.00010958,2]
[347418011,1735779046311,-3382.36,0.00010958,2]
[347418012,1735779046320,-500.0,0.00010958,2]
[347418013,1735779046329,-902.26,0.00010958,2]
[347418014,1735779046338,-1724.49,0.00010958,2]
[347418015,1735779046347,-500.0,0.00010958,2]
[347418016,1735779046356,-500.0,0.00010958,2]
[347418017,1735779046365,-741.59,0.00010958,2]
[347418018,1735779046374,-876.73,0.00010958,2]
[347418019,1735779046383,-836.88,0.00010958,2]
[347418020,1735779046393,-702.6,0.00010958,2]
[347418021,1735779046401,-6382.88,0.00010958,2]
[347418022,1735779046411,-500.0,0.00010958,2]
[347418023,1735779046424,-480.06368485,0.00010958,2]
[347418024,1735779046433,-1805.47,0.00010958,2]
[347418025,1735779046442,-1171.24,0.00010958,2]
[347418026,1735779046451,-500.0,0.00010958,2]
[347418027,1735779046460,-500.0,0.00010958,2]
[347418028,1735779046470,-1285.13,0.00010958,2]
[347418030,1735779046479,-500.0,0.00010958,2]
[347418031,1735779046488,-597.92,0.00010958,2]
[347418033,1735779046498,-500.0,0.00010958,2]
[347418035,1735779046507,-1133.94,0.00010958,2]
[347418037,1735779046517,-1872.53,0.00010958,2]
[347418039,1735779046525,-500.0,0.00010958,2]
[347418041,1735779046534,-626.57,0.00010958,2]
[347418042,1735779046543,-821.05,0.00010958,2]
[347418044,1735779046552,-500.0,0.00010958,2]
[347418046,1735779046561,-2720.61,0.00010958,2]
[347418048,1735779046571,-863.93,0.00010958,2]
[347418050,1735779046580,-500.0,0.00010958,2]
[347418051,1735779046589,-1267.77,0.00010958,2]
[347418053,1735779046598,-1009.74,0.00010958,2]
[347418054,1735779046608,-500.0,0.00010958,2]
[347418055,1735779046616,-6315.77,0.00010958,2]
[347418058,1735779046625,-663.81,0.00010958,2]
[347418060,1735779046634,-500.0,0.00010958,2]
[347418061,1735779046646,-500.0,0.00010958,2]
[347418062,1735779046655,-2418.06,0.00010958,2]
[347418063,1735779046667,-1785.26,0.00010958,2]
[347418064,1735779046676,-500.0,0.00010958,2]
[347418065,1735779046687,-3324.9,0.00010958,2]
[347418066,1735779046696,-500.0,0.00010958,2]
[347418067,1735779046705,-2898.7,0.00010958,2]
[347418068,1735779046714,-1158.57,0.00010958,2]
[347418069,1735779046723,-538.67,0.00010958,2]
[347418070,1735779046733,-500.0,0.00010958,2]
[347418071,1735779046742,-500.0,0.00010958,2]
[347418072,1735779046750,-5195.51,0.00010958,2]
[347418073,1735779046760,-500.0,0.00010958,2]
[347418074,1735779046769,-1242.03,0.00010958,2]
[347418075,1735779046778,-3069.19,0.00010958,2]
[347418076,1735779046787,-500.0,0.00010958,2]
[347418077,1735779046798,-5248.0,0.00010958,2]
[347418078,1735779046809,-500.0,0.00010958,2]
[347418079,1735779046819,-1086.75,0.00010958,2]
[347418080,1735779046829,-569.98,0.00010958,2]
[347418081,1735779046838,-500.0,0.00010958,2]
[347418082,1735779046848,-500.0,0.00010958,2]
[347418083,1735779046857,-500.0,0.00010958,2]
[347418084,1735779046866,-500.0,0.00010958,2]
[347418085,1735779046875,-1076.29,0.00010958,2]
[347418086,1735779046884,-500.0,0.00010958,2]
[347418087,1735779046893,-755.56,0.00010958,2]
[347418088,1735779046902,-1069.22,0.00010958,2]
[347418089,1735779046911,-734.88,0.00010958,2]
[347418090,1735779046924,-1209.69,0.00010958,2]
[347418091,1735779046934,-1361.13,0.00010958,2]
[347418092,1735779046943,-13983.27,0.00010958,2]
[347418093,1735779046953,-500.0,0.00010958,2]
[347418094,1735779046962,-500.0,0.00010958,2]
[347418095,1735779046971,-500.0,0.00010958,2]
[347418096,1735779046981,-508.24,0.00010958,2]
[347418097,1735779046990,-500.0,0.00010958,2]
[347418098,1735779046999,-777.61,0.00010958,2]
[347418099,1735779047008,-836.31,0.00010958,2]
[347418100,1735779047017,-613.66,0.00010958,2]
[347418101,1735779047026,-2180.49,0.00010958,2]
[347418102,1735779047035,-5784.78,0.00010958,2]
[347418103,1735779047044,-354.65836138,0.00010958,2]
[347418104,1735779047053,-500.0,0.00010958,2]
[347418105,1735779047062,-14769.23,0.00010958,2]
[347418106,1735779047071,-2002.4,0.00010958,2]
[347418107,1735779047080,-500.0,0.00010958,2]
[347418108,1735779047089,-500.0,0.00010958,2]
[347418109,1735779047099,-755.44,0.00010958,2]
[347418110,1735779047108,-500.0,0.00010958,2]
[347418111,1735779047117,-671.92,0.00010958,2]
[347418112,1735779047127,-1007.07,0.00010958,2]
[347418113,1735779047137,-500.0,0.00010958,2]
[347418114,1735779047147,-500.0,0.00010958,2]
[347418115,1735779047156,-500.0,0.00010958,2]
[347418116,1735779047168,-500.0,0.00010958,2]
[347418117,1735779047177,-500.0,0.00010958,2]
[347418118,1735779047186,-719.22,0.00010958,2]
[347418119,1735779047195,-1019.12,0.00010958,2]
[347418120,1735779047204,-4542.96,0.00010958,2]
[347418121,1735779047213,-7672.93,0.00010958,2]
[347418122,1735779047222,-885.8,0.00010958,2]
[347418123,1735779047231,-1277.2,0.00010958,2]
[347418124,1735779047241,-500.0,0.00010958,2]
[347418125,1735779047250,-500.0,0.00010958,2]
[347418126,1735779047259,-500.0,0.00010958,2]
[347418127,1735779047268,-500.0,0.00010958,2]
[347418128,1735779047277,-603.76161016,0.00010958,2]
[347418129,1735779047287,-2092.47,0.00010958,2]
[347418130,1735779047296,-1063.04,0.00010958,2]
[347418131,1735779047305,-1118.15,0.00010958,2]
[347418132,1735779047315,-500.0,0.00010958,2]
[347418133,1735779047324,-462.41997026,0.00010958,2]
[347418134,1735779047332,-500.0,0.00010958,2]
[347418135,1735779047341,-536.14,0.00010958,2]
[347418136,1735779047350,-500.0,0.00010958,2]
[347418137,1735779047359,-500.0,0.00010958,2]
[347418138,1735779047617,-1490.44,0.00010958,2]
[347418139,1735779047628,-500.0,0.00010958,2]
[347418140,1735779047637,-500.0,0.00010958,2]
[347418141,1735779047648,-758.21,0.00010958,2]
[347418142,1735779047661,-500.0,0.00010958,2]
[347418143,1735779047672,-2533.15,0.00010958,2]
[347418144,1735779047681,-337.28467056,0.00010958,2]
[347418145,1735779047691,-500.0,0.00010958,2]
[347418146,1735779047701,-500.0,0.00010958,2]
[347418147,1735779047710,-713.79,0.00010958,2]
[347418148,1735779047718,-2489.86,0.00010958,2]
[347418149,1735779047728,-1172.46,0.00010958,2]
[347418150,1735779047737,-500.0,0.00010958,2]
[347418151,1735779047747,-706.17,0.00010958,2]
[347418152,1735779047756,-500.0,0.00010958,2]
[347418153,1735779047765,-500.0,0.00010958,2]
[347418154,1735779047774,-1279.55,0.00010958,2]